bitfinex-derivatives/quotes_ETHF0:USTF0_20250709
["timestamp","ask_amount","ask_price","bid_price","bid_amount"]
[1752093655344,3.2078,2735.3,2735.2,0.73102]
[1752093655543,3.2078,2735.3,2735.1,1.2715]
[1752093655737,3.93879,2735.3,2735.1,2.00253]
[1752093655933,3.93881,2735.3,2735.1,2.00254]
[1752093656143,0.73102,2735.2,2735.1,2.00253]
[1752093656343,0.73105,2735.1,2735.0,0.73106]
[1752093656645,0.73102,2735.2,2735.1,0.73103]
[1752093656840,3.93881,2735.3,2735.1,0.73103]
[1752093657343,0.73102,2735.2,2735.1,0.73103]
[1752093657544,3.2078,2735.3,2735.2,0.73102]
[1752093657938,3.93879,2735.3,2735.2,0.73102]
[1752093658134,3.93879,2735.3,2735.1,0.73103]
[1752093658135,0.73102,2735.2,2735.1,0.73103]
[1752093658539,3.2078,2735.3,2735.0,0.73107]
[1752093658746,3.2078,2735.3,2735.1,0.73105]
[1752093658747,3.93881,2735.3,2735.1,0.73105]
[1752093658946,3.93881,2735.3,2734.8,1.2715]
[1752093658947,3.2078,2735.3,2735.2,0.73102]
[1752093659444,3.93879,2735.3,2735.2,0.73102]
[1752093659637,3.93879,2735.3,2735.0,0.73106]
[1752093659638,0.73103,2735.2,2735.0,0.73106]
[1752093659838,1.82765,2735.1,2734.5,1.148]
[1752093660047,0.73116,2734.7,2734.5,1.148]
[1752093660241,3.2078,2734.9,2734.8,0.73113]
[1752093660434,3.2078,2735.3,2735.2,0.73102]
[1752093660640,3.2078,2736.0,2735.9,0.73083]
[1752093660838,3.2078,2736.0,2735.7,1.3174]
[1752093661141,3.2078,2736.0,2735.6,0.73091]
[1752093661344,3.2078,2735.7,2735.6,0.73091]
[1752093662843,3.2078,2736.0,2735.8,1.82712]
[1752093663046,3.2078,2736.0,2735.9,2.04823]
[1752093663733,3.2078,2736.3,2736.2,0.73075]
[1752093663937,4.1531,2736.8,2736.2,0.81601453]
[1752093664239,3.2078,2736.8,2736.3,1.82682]
[1752093664434,3.2078,2736.8,2736.7,0.73062]
[1752093665041,3.2078,2736.8,2736.7,0.81588453]
[1752093665444,3.2078,2736.8,2736.7,0.08526453]
[1752093665646,3.2078,2736.8,2736.7,0.81588453]
[1752093666245,3.2078,2737.2,2737.1,0.73049]
[1752093666444,3.2078,2737.2,2736.8,3.12414]
[1752093666745,3.2078,2737.2,2737.1,0.73051]
[1752093667135,3.2078,2737.2,2737.1,0.81577453]
[1752093668541,9.1841,2737.2,2736.2,3.2078]
[1752093668745,2.62364949,2737.4,2735.8,1.82711]
[1752093668746,3.2078,2736.5,2735.8,1.82711]
[1752093668949,3.2078,2736.5,2736.0,0.7308]
[1752093668950,3.2078,2736.2,2736.0,0.7308]
[1752093669141,3.2078,2736.2,2736.1,0.73078]
[1752093670039,3.2078,2736.2,2736.0,0.73079]
[1752093670239,3.2078,2736.2,2735.8,1.2702]
[1752093670447,3.2078,2735.9,2735.8,0.73086]
[1752093670640,0.73074,2736.3,2736.1,0.73077]
[1752093670946,3.2078,2736.4,2736.3,0.73073]
[1752093671947,3.93852,2736.4,2736.2,0.73074]
[1752093672148,3.93852,2736.4,2736.0,1.3098]
[1752093672149,3.2078,2736.4,2736.3,0.73073]
[1752093672544,11.01088,2736.4,2735.8,1.0614]
[1752093672848,3.2078,2735.9,2735.8,1.79226]
[1752093673051,3.93863,2735.9,2735.8,1.0614]
[1752093673349,3.2078,2735.9,2735.8,1.79226]
[1752093674243,0.9763,2736.4,2736.2,0.73073]
[1752093674244,3.2078,2736.3,2736.2,0.73073]
[1752093674543,3.2078,2736.3,2735.9,1.2834]
[1752093674544,4.91484,2736.3,2735.9,1.2834]
[1752093674749,4.1841,2736.3,2736.1,0.73078]
[1752093674951,4.1841,2736.3,2735.9,1.2834]
[1752093675147,4.1841,2736.3,2736.0,0.7308]
[1752093675351,0.73076,2736.2,2736.0,0.7308]
[1752093675545,4.1841,2736.3,2735.9,1.2834]
[1752093675546,4.1841,2736.3,2736.1,0.73078]
[1752093675750,4.1841,2736.3,2735.9,1.2834]
[1752093676048,0.73075,2736.2,2736.1,0.73078]
[1752093676253,3.2078,2736.3,2736.2,0.73075]
[1752093677850,3.2078,2736.6,2736.5,0.73067]
[1752093678543,3.2078,2736.9,2736.3,1.2593]
[1752093678744,3.2078,2736.6,2736.5,0.73067]
[1752093679053,3.93845,2736.6,2736.5,0.73067]
[1752093679255,3.2078,2736.6,2736.5,0.73067]
[1752093679954,3.2078,2736.6,2736.5,1.72197]
[1752093680454,3.2078,2736.9,2736.8,0.73059]
[1752093680755,3.2078,2736.9,2736.7,2.449]
[1752093681149,0.73059,2736.8,2736.7,1.3464]
[1752093681349,3.93838,2736.9,2736.8,0.73059]
[1752093681554,3.2078,2736.9,2736.8,0.73059]
[1752093681752,3.93837,2736.9,2736.7,2.077]
[1752093681953,0.73059,2736.8,2736.7,0.7306]
[1752093682151,3.2078,2736.9,2736.4,1.2534]
[1752093682355,3.2078,2736.6,2736.5,0.73066]
[1752093683055,3.93845,2736.6,2736.5,0.73066]
[1752093683257,3.2078,2736.6,2736.5,0.73066]
[1752093683550,3.2078,2736.6,2736.5,0.73067]
[1752093684256,0.73067,2736.5,2736.4,1.2534]
[1752093684459,3.93846,2736.6,2736.4,1.2534]
[1752093684653,3.93846,2736.6,2735.9,1.82709]
[1752093684654,1.82669,2736.5,2735.7,5.03501]
[1752093684850,0.73078,2736.1,2736.0,1.2717]
[1752093685158,5.03464,2736.3,2735.8,0.73085]
[1752093685351,5.03464,2736.3,2735.8,2.00255]
[1752093685352,3.2078,2736.0,2735.8,2.00255]
[1752093685547,2.80339,2735.9,2735.1,3.2078]
[1752093685751,2.80339,2735.9,2735.3,0.73097]
[1752093685752,0.73095,2735.5,2735.3,0.73097]
[1752093685954,3.93873,2735.6,2735.4,0.73097]
[1752093686153,4.1841,2735.6,2735.2,1.2717]
[1752093686349,3.2078,2735.3,2734.8,1.1283]
[1752093686558,3.2078,2735.0,2734.9,2.0028]
[1752093688755,3.2078,2735.0,2734.9,2.9941]
[1752093689456,3.2078,2735.0,2734.9,0.7311]
[1752093689751,3.2078,2735.5,2735.4,0.73097]
[1752093689952,3.2078,2735.8,2735.4,0.73097]
[1752093690163,3.2078,2735.8,2735.7,0.73089]
[1752093690961,3.2078,2736.1,2736.0,0.7308]
[1752093691262,3.93858,2736.1,2735.9,0.73082]
[1752093691458,3.2078,2736.1,2736.0,0.73081]
[1752093693465,3.2078,2736.1,2735.9,0.73083]
[1752093693762,3.93859,2736.1,2735.9,0.73083]
[1752093693964,0.73083,2736.0,2735.7,0.73089]
[1752093694163,0.73083,2736.0,2735.6,1.2299]
[1752093694164,3.2078,2736.1,2735.6,1.2299]
[1752093694368,3.2078,2736.1,2736.0,0.73081]
[1752093694859,3.2078,2736.1,2736.0,1.72211]
[1752093695357,3.2078,2736.5,2736.0,0.9913]
[1752093695666,3.2078,2736.5,2736.4,0.7307]
[1752093697266,3.93841,2736.8,2736.6,0.73063]
[1752093697662,3.2078,2736.8,2736.7,0.73062]
[1752093698062,4.1562,2737.4,2736.9,1.82638]
[1752093698259,1.38430309,2737.3,2737.2,0.73049]
[1752093698672,3.2078,2737.4,2737.3,0.73046]
[1752093699375,3.2078,2737.8,2737.7,0.73035]
[1752093699675,5.54005543,2737.8,2737.7,0.73035]
[1752093699871,4.1562,2737.8,2737.2,3.0732]
[1752093700175,4.1562,2737.8,2737.7,0.73035]
[1752093700569,4.1562,2737.8,2737.3,1.82616]
[1752093700769,3.2078,2737.8,2737.7,0.73035]
[1752093702177,0.73024,2738.2,2737.7,0.73035]
[1752093702178,3.2078,2738.2,2737.7,0.73035]
[1752093702375,3.2078,2738.2,2738.1,0.73025]
[1752093702766,4.1562,2738.2,2737.8,1.2183]
[1752093702971,3.2078,2737.9,2737.8,1.94863]
[1752093703371,3.2078,2737.9,2737.8,0.73033]
[1752093704375,4.1562,2737.9,2737.2,1.82618]
[1752093704571,3.2078,2737.6,2737.4,0.73042]
[1752093704777,3.2078,2737.6,2737.5,0.73041]
[1752093705473,0.9484,2737.9,2737.6,1.82596]
[1752093705474,3.2078,2737.9,2737.6,1.82596]
[1752093705674,3.2078,2737.9,2737.6,1.267]
[1752093705874,3.2078,2737.9,2737.8,0.73033]
[1752093706377,3.2078,2737.9,2737.6,1.267]
[1752093706575,0.9484,2737.8,2737.5,0.7304]
[1752093706768,3.2078,2737.6,2737.5,0.7304]
[1752093708491,3.9381,2737.9,2737.5,0.7304]
[1752093708773,0.73033,2737.8,2737.4,1.2905]
[1752093708971,3.2078,2737.9,2737.8,0.73033]
[1752093709775,3.2078,2738.2,2737.9,1.8257]
[1752093709978,3.2078,2738.2,2738.1,0.73025]
[1752093714483,0.73027,2738.0,2737.9,0.7303]
[1752093714679,0.73026,2738.1,2737.6,1.82592]
[1752093714884,0.73027,2738.0,2737.9,0.73028]
[1752093715073,0.73026,2738.1,2738.0,0.73026]
[1752093715278,0.73028,2738.0,2737.9,0.73029]
[1752093715581,4.1562,2738.2,2737.5,1.3065]
[1752093715775,3.93812,2737.9,2737.7,0.73033]
[1752093715976,3.2078,2737.9,2737.3,0.9978]
[1752093716178,3.2078,2737.9,2737.8,0.73033]
[1752093716378,3.2078,2738.2,2738.1,0.73025]
[1752093716875,4.88626,2738.8,2737.9,1.2264]
[1752093717076,4.1562,2739.4,2738.8,1.82516]
[1752093717383,4.1562,2739.4,2739.3,0.72993]
[1752093717777,3.2078,2739.4,2738.9,1.2264]
[1752093718179,3.2078,2739.1,2738.9,1.95642]
[1752093718482,3.2078,2739.1,2739.0,0.73001]
[1752093718878,3.93779,2739.1,2738.8,0.73003]
[1752093719071,3.93779,2739.1,2738.9,0.73003]
[1752093719674,4.88619,2739.1,2738.9,0.73003]
[1752093720076,3.2078,2739.1,2739.0,0.73001]
[1752093720274,3.2078,2739.1,2738.5,2.2925]
[1752093720479,3.93779,2739.1,2738.5,4.11783]
[1752093720679,3.9378,2739.1,2738.9,0.73003]
[1752093720879,0.9484,2739.0,2738.5,1.2803]
[1752093721074,0.9484,2739.0,2738.9,0.73003]
[1752093721476,0.73001,2739.0,2738.5,1.2803]
[1752093721885,3.9378,2739.1,2738.9,0.73003]
[1752093722086,3.9378,2739.1,2738.9,0.73002]
[1752093722286,0.73004,2738.9,2738.8,0.73006]
[1752093722586,0.73012,2738.6,2738.2,1.0871]
[1752093722781,3.2078,2738.4,2738.3,0.73019]
[1752093723486,3.2078,2738.4,2738.3,0.83968398]
[1752093724581,3.2078,2738.4,2738.3,0.10949398]
[1752093724787,3.2078,2738.4,2738.3,0.83968398]
[1752093725084,3.2078,2738.8,2738.7,0.73009]
[1752093725482,3.93786,2738.8,2738.7,0.83958398]
[1752093725682,3.93786,2738.8,2738.7,0.10949398]
[1752093725884,4.88626,2738.8,2738.7,0.10949398]
[1752093726090,4.88626,2738.8,2738.7,0.83958398]
[1752093726091,4.1562,2738.8,2738.7,0.83958398]
[1752093726285,3.2078,2738.8,2738.7,0.83958398]
[1752093726485,3.93786,2738.8,2738.7,0.10949398]
[1752093726788,4.88626,2738.8,2738.7,0.10949398]
[1752093726984,3.2078,2738.8,2738.7,0.83958398]
[1752093730286,0.9484,2739.4,2738.7,0.83958398]
[1752093730287,3.2078,2739.1,2738.8,0.73006]
[1752093730485,0.73004,2738.9,2738.8,0.73005]
[1752093730791,1.72534,2738.9,2738.8,0.10949398]
[1752093730987,1.72534,2738.9,2738.0,0.73026]
[1752093730988,5.9953,2738.9,2738.0,0.73026]
[1752093731289,5.9953,2738.9,2737.6,5.28631206]
[1752093731290,0.73023,2738.2,2738.1,0.73024]
[1752093731485,0.73023,2738.2,2737.7,1.2354]
[1752093731486,4.2031,2738.2,2737.7,1.2354]
[1752093731685,3.2078,2737.9,2737.8,0.73031]
[1752093731992,0.73033,2737.8,2737.6,0.73038]
[1752093732186,4.2031,2737.9,2737.2,55.3959]
[1752093732187,4.2031,2737.9,2737.2,57.6971]
[1752093732488,4.2031,2737.9,2737.3,1.82616]
[1752093732689,4.2031,2737.9,2737.8,0.73033]
[1752093733083,3.2078,2737.9,2737.4,3.06146]
[1752093733282,3.2078,2737.9,2737.8,0.73033]
[1752093733681,0.73034,2737.8,2737.6,0.73037]
[1752093733883,3.2078,2737.9,2737.5,0.73038]
[1752093734092,1.72565,2737.8,2737.6,0.73038]
[1752093734288,3.2078,2737.9,2737.4,3.06146]
[1752093734482,4.2031,2737.9,2737.6,0.73037]
[1752093734687,0.73033,2737.8,2737.4,1.2354]
[1752093734893,4.93342,2737.9,2737.7,0.73033]
[1752093735087,4.2031,2737.9,2737.8,0.73033]
[1752093735283,4.9334,2737.9,2737.7,0.73033]
[1752093735485,4.2031,2737.9,2737.8,0.73033]
[1752093735683,3.2078,2737.9,2737.8,0.73033]
[1752093735992,1.0095,2738.1,2738.0,0.73027]
[1752093736191,1.73975,2738.1,2737.9,0.73028]
[1752093736489,2.73505,2738.1,2737.9,0.73029]
[1752093736788,2.73506,2738.1,2737.7,1.2657]
[1752093736993,3.2078,2737.9,2737.8,0.73033]
[1752093739189,3.2078,2738.2,2737.8,0.73033]
[1752093739384,3.2078,2738.2,2738.1,0.73025]
[1752093740087,3.93802,2738.2,2738.1,0.73025]
[1752093740291,3.93804,2738.2,2738.0,0.73026]
[1752093740694,3.93804,2738.2,2738.1,0.73025]
[1752093741096,3.2078,2738.2,2738.1,0.73025]
[1752093742198,3.93802,2738.2,2738.1,0.73025]
[1752093742898,3.2078,2738.2,2738.1,0.73025]
[1752093743100,3.93802,2738.2,2738.1,0.73025]
[1752093743398,0.73025,2738.1,2738.0,0.73026]
[1752093743799,3.93804,2738.2,2738.1,0.73025]
[1752093744000,3.93804,2738.2,2738.0,0.73025]
[1752093744001,0.73025,2738.1,2738.0,0.73025]
[1752093744199,3.2078,2738.2,2738.1,0.73025]
[1752093744903,3.93802,2738.2,2738.1,0.73025]
[1752093745103,3.2078,2738.2,2738.1,0.73025]
[1752093747501,3.8335,2738.2,2738.1,1.37505]
[1752093747703,0.73026,2738.1,2738.0,0.73025]
[1752093747903,0.6257,2738.1,2738.0,1.37507]
[1752093748603,3.2078,2738.2,2738.1,0.73025]
[1752093749005,3.2078,2738.2,2738.1,1.48157603]
[1752093749006,3.8335,2738.2,2738.1,1.48157603]
[1752093749706,4.56372,2738.2,2738.1,1.48157603]
[1752093750506,3.8335,2738.2,2738.1,1.48157603]
[1752093751203,1.82562,2738.1,2737.1,4.34061206]
[1752093751406,0.73051,2737.1,2737.0,4.34061206]
[1752093751701,3.2078,2737.2,2736.7,0.7306]
[1752093751905,0.73054,2737.0,2736.8,0.73059]
[1752093752099,3.2078,2736.9,2736.8,0.73059]
[1752093754617,0.73051,2737.2,2736.9,0.73055]
[1752093754618,0.73051,2737.1,2736.9,0.73055]
[1752093755114,0.73051,2737.1,2736.8,0.73057]
[1752093755404,0.9953,2737.4,2736.4,4.1535]
[1752093755405,0.73061,2736.8,2736.4,0.9457]
[1752093755710,0.73062,2736.7,2736.6,0.73063]
[1752093755904,3.2078,2736.9,2736.3,1.2527]
[1752093756099,3.2078,2736.6,2736.1,0.9955]
[1752093756309,3.2078,2736.2,2736.1,1.72628]
[1752093756912,3.2078,2736.5,2736.2,0.73075]
[1752093757108,3.2078,2736.5,2736.3,1.2527]
[1752093757311,3.93849,2736.5,2736.2,0.73074]
[1752093757516,3.2078,2736.5,2736.4,0.7307]
[1752093757910,3.93848,2736.5,2736.3,0.73072]
[1752093758112,3.2078,2736.5,2736.4,0.7307]
[1752093759816,3.2078,2736.8,2736.5,1.82665]
[1752093760118,3.2078,2737.2,2736.8,1.82649]
[1752093760318,3.2078,2737.2,2737.1,0.73051]
[1752093761408,3.2078,2737.2,2737.1,2.04281]
[1752093762316,3.2078,2737.2,2737.1,3.04781]
[1752093762716,3.2078,2737.7,2737.3,1.82609]
[1752093762913,3.2078,2737.7,2737.6,0.73038]
[1752093763110,3.2078,2737.7,2737.4,1.3123]
[1752093763111,3.93816,2737.7,2737.4,1.3123]
[1752093763520,3.93816,2737.7,2737.5,0.73041]
[1752093764217,3.2078,2737.7,2737.1,3.2078]
[1752093764519,4.87147,2737.7,2737.5,0.7304]
[1752093764721,4.1411,2737.7,2737.6,0.73038]
[1752093764922,5.51638164,2737.7,2737.6,0.73038]
[1752093765116,5.51638164,2737.7,2737.1,4.4335]
[1752093765325,2.10565357,2737.6,2737.1,6.25976]
[1752093765617,5.61834774,2737.2,2736.1,3.2078]
[1752093765820,3.2078,2736.4,2736.1,0.73077]
[1752093766014,0.9333,2736.3,2736.2,0.73075]
[1752093766922,1.66403,2736.3,2736.2,0.73075]
[1752093767520,0.9333,2736.3,2736.2,0.73075]
[1752093768216,3.2078,2736.7,2736.1,1.82696]
[1752093768418,0.73066,2736.6,2736.5,0.73066]
[1752093768813,3.93844,2736.7,2736.6,0.73065]
[1752093769016,4.87174,2736.7,2736.6,0.73065]
[1752093769514,4.1411,2736.7,2736.6,0.73065]
[1752093769726,3.93842,2736.7,2736.6,0.73065]
[1752093769923,4.87172,2736.7,2736.6,0.73065]
[1752093770123,0.73066,2736.6,2736.5,0.73067]
[1752093770618,4.1411,2736.7,2736.4,0.73069]
[1752093770921,0.73066,2736.6,2736.5,0.73067]
[1752093771523,3.93843,2736.7,2736.6,0.73065]
[1752093771722,0.73067,2736.6,2736.5,0.73066]
[1752093772523,3.93844,2736.7,2736.6,0.73065]
[1752093772719,0.73081,2736.0,2735.9,4.34061206]
[1752093772917,5.96813,2736.0,2735.6,0.73091]
[1752093773117,1.82715,2735.9,2735.4,0.73095]
[1752093773327,0.73099,2735.4,2735.3,0.73098]
[1752093773516,0.73095,2735.5,2735.4,0.73096]
[1752093773718,3.2078,2735.7,2735.2,1.2823]
[1752093773916,0.9333,2735.6,2735.2,1.2823]
[1752093774125,0.73092,2735.6,2735.2,1.2823]
[1752093774317,3.2078,2735.7,2735.5,0.73093]
[1752093774517,0.73096,2735.5,2735.3,0.73099]
[1752093774725,4.1411,2735.7,2735.5,0.73093]
[1752093774921,3.2078,2735.7,2735.6,0.73091]
[1752093775923,3.2078,2736.0,2735.6,2.63243002]
[1752093776117,3.2078,2736.4,2735.9,3.2078]
[1752093776421,0.9333,2736.3,2735.7,1.3242]
[1752093776621,0.73079,2736.1,2735.9,0.73082]
[1752093776924,0.9333,2736.1,2735.9,0.73082]
[1752093777221,1.66408,2736.1,2735.8,0.73084]
[1752093777419,0.9333,2736.1,2735.7,1.3242]
[1752093777616,0.73083,2736.0,2735.8,0.73085]
[1752093777822,0.7309,2735.7,2735.5,0.73093]
[1752093778018,1.66419,2735.7,2735.5,0.73092]
[1752093778217,0.9333,2735.7,2735.2,3.2078]
[1752093778418,0.9333,2735.6,2735.3,1.3242]
[1752093778619,0.73099,2735.4,2735.2,0.73102]
[1752093779027,0.9333,2735.5,2735.4,0.73097]
[1752093779328,2.1949,2735.7,2735.3,0.73098]
[1752093779527,0.73094,2735.5,2735.3,0.73098]
[1752093779720,0.73093,2735.6,2735.4,0.73096]
[1752093779922,0.73091,2735.6,2735.4,0.73095]
[1752093780122,1.66419,2735.7,2735.5,0.73093]
[1752093780318,0.73093,2735.6,2735.4,0.73097]
[1752093780525,0.73094,2735.5,2735.3,1.95778]
[1752093780726,3.2078,2735.5,2734.9,0.991]
[1752093781024,3.2078,2735.5,2734.2,3.2078]
[1752093781025,5.84023002,2735.2,2734.2,3.2078]
[1752093781225,3.2078,2734.7,2734.2,1.2268]
[1752093781426,3.2078,2734.4,2734.1,0.73131]
[1752093781626,3.93905,2734.4,2734.1,0.73131]
[1752093781819,3.93905,2734.4,2734.2,0.73128]
[1752093782025,3.2078,2734.4,2734.1,0.7313]
[1752093782227,0.73127,2734.3,2734.1,0.7313]
[1752093782424,3.2078,2734.4,2733.8,5.38]
[1752093782627,0.73126,2734.3,2734.1,0.7313]
[1752093782830,0.73126,2734.3,2733.8,5.38]
[1752093783025,3.93905,2734.4,2734.2,0.73127]
[1752093783327,3.2078,2734.4,2734.3,0.73126]
[1752093783925,3.2078,2734.9,2734.0,1.2847]
[1752093784125,1.8277,2735.0,2734.0,1.2847]
[1752093784126,0.73122,2734.5,2734.0,1.2847]
[1752093784328,0.73122,2734.5,2734.3,0.73125]
[1752093784725,0.73122,2734.5,2734.0,1.2847]
[1752093784726,3.2078,2734.6,2734.5,0.73121]
[1752093785131,3.2078,2734.6,2734.2,1.2847]
[1752093785433,0.73125,2734.4,2734.3,0.73126]
[1752093785634,0.73126,2734.3,2734.2,0.73127]
[1752093785837,5.03577,2734.6,2734.0,1.2185]
[1752093786029,0.73132,2734.1,2733.8,0.9454]
[1752093786228,0.73135,2734.0,2733.9,0.73135]
[1752093786531,0.73129,2734.2,2734.1,0.7313]
[1752093786732,0.73141,2733.8,2733.7,0.73141]
[1752093786934,2.76155,2734.2,2733.9,0.73137]
[1752093786935,3.2078,2734.0,2733.9,0.73137]
[1752093787136,3.2078,2734.0,2733.5,1.2185]
[1752093787532,0.73139,2733.9,2733.7,0.73142]
[1752093787832,0.73144,2733.7,2733.5,1.2185]
[1752093788028,4.1739,2734.0,2733.8,0.73138]
[1752093788229,4.1739,2734.0,2733.6,0.73145]
[1752093788433,0.73142,2733.7,2733.5,1.2185]
[1752093788631,3.2078,2734.0,2733.5,1.2185]
[1752093788831,0.9661,2734.3,2733.5,1.2185]
[1752093788832,3.2078,2734.3,2733.7,5.62486367]
[1752093789029,0.73137,2733.9,2733.8,1.2943]
[1752093789433,0.73136,2734.0,2733.8,1.2943]
[1752093789630,0.73136,2734.0,2733.8,2.02567]
[1752093789836,0.73137,2733.9,2733.8,1.2943]
[1752093790029,0.73137,2733.9,2733.8,2.0257]
[1752093790234,3.93915,2734.0,2733.8,2.02568]
[1752093790431,0.73137,2733.9,2733.8,1.2943]
[1752093790839,3.93916,2734.0,2733.9,0.73137]
[1752093791245,3.2078,2734.0,2733.9,0.73137]
[1752093791435,3.2078,2734.0,2733.3,1.9165]
[1752093791640,3.2078,2733.7,2733.4,1.2823]
[1752093792041,3.93922,2733.7,2733.4,1.2823]
[1752093792240,0.73148,2733.5,2733.4,1.2823]
[1752093792937,0.73146,2733.6,2733.4,1.2823]
[1752093793133,3.2078,2733.7,2733.4,2.2041]
[1752093793333,0.73148,2733.5,2733.4,4.62116367]
[1752093793735,0.73147,2733.6,2733.4,5.35266367]
[1752093793934,3.93924,2733.7,2733.5,0.73147]
[1752093794247,3.93922,2733.7,2733.6,1.2823]
[1752093794446,3.2078,2733.7,2733.6,1.2823]
[1752093794646,3.93922,2733.7,2733.6,1.2823]
[1752093796845,3.2078,2733.7,2733.6,1.2823]
[1752093797047,3.2078,2733.7,2733.6,2.93555]
[1752093797547,3.93922,2733.7,2733.6,2.2041]
[1752093797751,3.93922,2733.7,2733.6,2.93555]
[1752093798047,3.2078,2733.7,2733.6,2.93555]
[1752093798251,3.93922,2733.7,2733.6,2.2041]
[1752093798449,3.93922,2733.7,2733.6,2.01375]
[1752093798649,3.2078,2733.7,2733.6,2.01375]
[1752093798838,0.73139,2733.9,2733.8,0.7314]
[1752093799045,3.2078,2734.0,2733.7,1.3019]
[1752093799254,0.7314,2733.8,2733.7,1.3019]
[1752093800144,3.2078,2734.0,2733.7,1.3019]
[1752093800344,0.7314,2733.8,2733.7,1.3019]
[1752093801249,0.7314,2733.8,2733.7,2.03332]
[1752093801451,0.7314,2733.8,2733.7,2.03331]
[1752093802150,0.73139,2733.9,2733.8,0.73139]
[1752093802341,1.8285,2733.8,2733.4,0.73148]
[1752093802542,4.1739,2733.7,2733.1,6.25934]
[1752093802750,4.1739,2733.7,2733.1,7.26414]
[1752093803052,0.73146,2733.6,2733.5,0.73145]
[1752093803242,3.93924,2733.7,2733.6,0.73145]
[1752093803444,3.2078,2733.7,2733.6,0.73145]
[1752093804248,3.93922,2733.7,2733.6,0.73145]
[1752093804653,0.73145,2733.6,2733.5,2.02576]
[1752093804852,0.73145,2733.6,2733.5,1.2943]
[1752093805253,0.73145,2733.6,2733.5,2.02578]
[1752093805549,3.2078,2733.7,2733.6,0.73145]
[1752093806552,3.2078,2733.7,2733.6,1.65325]
[1752093807454,0.73133,2734.1,2733.7,0.73142]
[1752093807651,3.2078,2734.4,2733.8,2.7503]
[1752093807863,3.2078,2734.4,2734.1,0.73129]
[1752093808157,0.73126,2734.3,2734.2,1.31]
[1752093808455,0.73137,2734.0,2733.9,0.73137]
[1752093809654,6.00201,2734.4,2733.8,1.31]
[1752093809855,3.21528263,2734.3,2733.8,1.31]
[1752093810052,1.38710263,2734.2,2733.8,2.2318]
[1752093810253,4.1739,2734.4,2734.1,0.7313]
[1752093810453,1.38650569,2734.3,2733.8,2.2318]
[1752093810646,1.38650569,2734.2,2733.8,1.31]
[1752093810852,0.73132,2734.1,2733.8,1.31]
[1752093811057,0.73132,2734.1,2734.0,0.73134]
[1752093811567,0.73135,2734.0,2733.9,0.73136]
[1752093811860,3.2078,2734.1,2733.8,1.31]
[1752093812055,3.93912,2734.1,2734.0,0.73134]
[1752093812255,3.93911,2734.1,2734.0,0.73134]
[1752093812458,3.2078,2734.1,2734.0,0.73134]
[1752093812657,3.869,2734.1,2734.0,1.36364]
[1752093814056,4.60031,2734.1,2734.0,1.36364]
[1752093814359,3.869,2734.1,2734.0,1.36364]
[1752093814659,3.869,2734.1,2734.0,2.28544]
[1752093814660,3.2078,2734.1,2734.0,2.28544]
[1752093815052,3.2078,2734.6,2734.0,3.2078]
[1752093815252,3.2078,2734.1,2733.8,0.73139]
[1752093815453,4.1739,2734.1,2733.7,1.0221]
[1752093815649,0.73136,2734.0,2733.8,0.73139]
[1752093815954,3.2078,2734.1,2733.4,0.9218]
[1752093816153,0.73146,2733.6,2733.5,1.97566]
[1752093816354,1.82856,2733.7,2733.3,0.9292]
[1752093816660,0.7315,2733.4,2733.3,0.9292]
[1752093816864,0.7315,2733.4,2733.3,1.66073]
[1752093817360,0.7315,2733.4,2733.3,1.66071]
[1752093817562,0.7315,2733.4,2733.3,1.66072]
[1752093817760,3.2078,2733.5,2733.3,0.9292]
[1752093817954,3.93929,2733.5,2733.4,0.7315]
[1752093818457,0.73144,2733.7,2733.6,0.73145]
[1752093819367,3.2078,2733.8,2733.7,0.73142]
[1752093819657,4.58931173,2733.8,2733.7,0.73142]
[1752093820460,3.2078,2733.8,2733.7,0.73142]
[1752093820961,4.4976,2734.5,2734.0,1.82836]
[1752093821166,4.4976,2734.5,2733.8,1.82848]
[1752093821167,0.73139,2733.9,2733.7,0.7314]
[1752093821455,0.73143,2733.7,2733.2,1.82887]
[1752093821658,3.93921,2733.8,2733.6,0.73143]
[1752093822161,3.2078,2733.8,2733.7,0.73142]
[1752093822366,0.73143,2733.7,2733.6,0.73143]
[1752093822659,3.2078,2733.8,2733.2,4.69456367]
[1752093822660,4.1315,2733.8,2733.2,2.2775]
[1752093822851,4.1315,2733.8,2733.5,0.73147]
[1752093823051,4.1315,2733.8,2733.3,1.3013]
[1752093823260,0.73146,2733.6,2733.3,1.3013]
[1752093823458,0.73146,2733.6,2733.5,0.73146]
[1752093823763,3.93922,2733.8,2733.7,0.73142]
[1752093823957,3.2078,2733.8,2733.3,1.3013]
[1752093824156,0.73146,2733.6,2733.5,0.73147]
[1752093824655,0.73143,2733.7,2733.6,0.73142]
[1752093825053,0.73143,2733.7,2733.6,0.73144]
[1752093825054,0.73145,2733.7,2733.6,0.73144]
[1752093825257,3.2078,2733.8,2733.3,3.13012]
[1752093825463,3.9392,2733.8,2733.7,0.73142]
[1752093826061,3.2078,2733.8,2733.7,0.73142]
[1752093826263,3.9392,2733.8,2733.7,0.73142]
[1752093826762,3.2078,2733.8,2733.7,0.73142]
[1752093827168,0.9314,2734.0,2733.7,0.73142]
[1752093827169,0.73136,2734.0,2733.7,0.73142]
[1752093827358,0.73141,2733.8,2733.7,0.7314]
[1752093827668,0.643,2733.8,2733.7,0.73142]